bitfinex-derivatives/quotes_SOLF0:USTF0_20260304
["timestamp","ask_amount","ask_price","bid_price","bid_amount"]
[1772593639624,3.74669172,86.564,86.491,14.33748112]
[1772593639931,1.53437778,86.54,86.491,3.77299953]
[1772593640125,161.63,86.615,86.433,161.968]
[1772593640126,1.53437778,86.55,86.501,3.77299953]
[1772593640327,1.53437778,86.56,86.511,3.77299953]
[1772593640522,1.53437778,86.54,86.491,3.77299953]
[1772593640729,1.53437778,86.53,86.491,3.77299953]
[1772593641427,1.53437778,86.53,86.48,1.53437778]
[1772593641428,1.53437778,86.52,86.48,1.53437778]
[1772593641628,1.53437778,86.51,86.46,1.53437778]
[1772593641829,1.53437778,86.51,86.46,5.30737731]
[1772593642130,1.53437778,86.51,86.361,11.54]
[1772593642131,5.2810695,86.52,86.48,1.53437778]
[1772593642321,5.2810695,86.52,86.477,3.77299953]
[1772593642523,5.28635176,86.52,86.477,3.77299953]
[1772593643632,3.74669172,86.519,86.47,1.53966004]
[1772593644630,3.74669172,86.519,86.397,21.47996773]
[1772593644631,1.53966004,86.54,86.49,5.31265957]
[1772593644828,1.53966004,86.54,86.491,3.77299953]
[1772593645633,1.53966004,86.53,86.48,1.53966004]
[1772593645833,3.74669172,86.529,86.48,1.53966004]
[1772593646335,3.74669172,86.529,86.49,1.53966004]
[1772593646728,1.53966004,86.54,86.49,1.53966004]
[1772593646924,3.74669172,86.545,86.5,1.53966004]
[1772593647434,1.53966004,86.54,86.491,3.77299953]
[1772593647834,3.74669172,86.545,86.491,3.77299953]
[1772593648030,1.53966004,86.55,86.501,3.77299953]
[1772593648334,5.28635176,86.56,86.51,1.53966004]
[1772593648534,3.74669172,86.559,86.51,1.53966004]
[1772593648733,3.74669172,86.559,86.51,5.31265957]
[1772593648930,3.74669172,86.559,86.52,1.53966004]
[1772593650226,3.74669172,86.559,86.51,1.53966004]
[1772593650731,1.53966004,86.56,86.511,3.77299953]
[1772593650932,3.74669172,86.574,86.53,1.53966004]
[1772593653236,3.74669172,86.568,86.503,3.77299953]
[1772593653434,3.74669172,86.568,86.449,183.41896773]
[1772593653435,3.74669172,86.568,86.53,1.53966004]
[1772593653730,1.53966004,86.58,86.53,1.53966004]
[1772593653937,3.74669172,86.579,86.53,1.53966004]
[1772593654536,3.74669172,86.579,86.54,1.53966004]
[1772593655830,3.74669172,86.595,86.55,1.53966004]
[1772593656632,1.53966004,86.59,86.541,3.77299953]
[1772593657734,3.74669172,86.595,86.56,1.53966004]
[1772593658137,3.74669172,86.595,86.55,1.53966004]
[1772593658337,3.74669172,86.595,86.56,1.53966004]
[1772593658534,5.28635176,86.61,86.56,1.53966004]
[1772593658739,3.74669172,86.609,86.56,1.53966004]
[1772593660741,3.74669172,86.628,86.59,1.53966004]
[1772593661040,3.74669172,86.638,86.59,1.53966004]
[1772593661542,161.485,86.693,86.514,161.816]
[1772593661543,1.53966004,86.65,86.61,1.53966004]
[1772593662635,3.74669172,86.654,86.62,1.53966004]
[1772593662838,10.384,86.665,86.62,1.53966004]
[1772593663038,10.385,86.66,86.62,1.53966004]
[1772593663344,3.74669172,86.659,86.61,1.53966004]
[1772593664138,10.385,86.656,86.61,1.53966004]
[1772593664342,14.13169172,86.656,86.61,1.53966004]
[1772593665845,3.74669172,86.667,86.62,1.53966004]
[1772593666244,3.74669172,86.659,86.611,3.77299953]
[1772593666544,3.74669172,86.65,86.596,3.77299953]
[1772593668436,3.79639407,86.661,86.596,3.77299953]
[1772593668637,4.56841745,86.68,86.596,3.77299953]
[1772593668948,3.79639407,86.679,86.611,3.82026699]
[1772593669139,3.79639407,86.694,86.631,3.82026699]
[1772593669845,3.79639407,86.694,86.633,3.82026699]
[1772593670445,3.79639407,86.691,86.633,3.82026699]
[1772593671146,3.79639407,86.689,86.617,3.82026699]
[1772593671344,3.79639407,86.679,86.617,3.82026699]
[1772593672841,4.56841745,86.68,86.617,3.82026699]
[1772593672842,3.79639407,86.676,86.617,3.82026699]
[1772593674146,4.56841745,86.68,86.617,3.82026699]
[1772593674147,3.79639407,86.672,86.617,3.82026699]
[1772593674543,3.79639407,86.684,86.617,3.82026699]
[1772593674746,3.79639407,86.669,86.601,3.82026699]
[1772593675544,4.56841745,86.67,86.59,8.38868444]
[1772593675545,3.79639407,86.657,86.59,8.38868444]
[1772593675748,3.79639407,86.657,86.591,3.82026699]
[1772593677250,3.79639407,86.657,86.594,3.82026699]
[1772593678046,3.79639407,86.657,86.597,3.82026699]
[1772593679548,4.56841745,86.67,86.55,4.56841745]
[1772593679549,3.79639407,86.649,86.571,3.82026699]
[1772593680351,3.79639407,86.649,86.58,3.82026699]
[1772593680847,3.79639407,86.669,86.591,3.82026699]
[1772593682445,3.79639407,86.669,86.604,3.82026699]
[1772593683352,3.79639407,86.669,86.59,4.56841745]
[1772593683353,14.17839407,86.684,86.609,3.82026699]
[1772593683555,3.79639407,86.683,86.611,3.82026699]
[1772593683748,3.79639407,86.679,86.611,3.82026699]
[1772593684749,3.79639407,86.679,86.613,3.82026699]
[1772593685252,3.79639407,86.679,86.618,3.82026699]
[1772593685850,4.56841745,86.69,86.61,4.56841745]
[1772593686059,3.79639407,86.695,86.631,3.82026699]
[1772593686556,3.79639407,86.689,86.616,3.82026699]
[1772593686956,3.79639407,86.669,86.616,3.82026699]
[1772593687255,3.79639407,86.669,86.619,3.82026699]
[1772593687456,3.79639407,86.684,86.619,3.82026699]
[1772593687852,3.79639407,86.716,86.658,3.82026699]
[1772593688460,3.79639407,86.716,86.643,3.82026699]
[1772593688647,3.79639407,86.716,86.66,14.20526699]
[1772593688846,3.79639407,86.716,86.661,3.82026699]
[1772593689453,3.79639407,86.714,86.649,10.386]
[1772593689954,3.79639407,86.714,86.649,14.20626699]
[1772593690456,3.79639407,86.71,86.649,14.20626699]
[1772593691155,3.79639407,86.71,86.653,10.385]
[1772593691354,3.79639407,86.71,86.64,4.56841745]
[1772593691355,3.79639407,86.71,86.654,3.82026699]
[1772593692149,3.79639407,86.71,86.656,3.82026699]
[1772593697051,3.79639407,86.71,86.647,10.386]
[1772593697052,3.79639407,86.71,86.659,3.82026699]
[1772593698154,10.377,86.72,86.662,3.79095573]
[1772593698456,3.60852943,86.742,86.662,3.79095573]
[1772593698760,3.60852943,86.742,86.683,3.79095573]
[1772593699954,3.61056188,86.741,86.683,3.79095573]
[1772593700559,3.61056188,86.755,86.687,3.6839261]
[1772593700954,3.61056188,86.749,86.687,3.6839261]
[1772593701150,4.56841745,86.75,86.687,3.6839261]
[1772593701151,3.61056188,86.742,86.687,3.6839261]
[1772593702055,3.61056188,86.74,86.687,3.6839261]
[1772593702560,3.61056188,86.739,86.687,3.6839261]
[1772593703264,3.61056188,86.755,86.687,3.6839261]
[1772593703655,3.61056188,86.739,86.687,3.6839261]
[1772593705556,3.61056188,86.73,86.661,3.6839261]
[1772593706562,3.61056188,86.73,86.667,3.6839261]
[1772593707657,3.61056188,86.719,86.654,10.385]
[1772593708257,3.61056188,86.717,86.654,10.385]
[1772593708458,1.53323818,86.7,86.654,10.385]
[1772593710563,1.53323818,86.7,86.65,1.53323818]
[1772593710868,1.53323818,86.69,86.65,3.6839261]
[1772593711061,3.61056188,86.697,86.641,3.6839261]
[1772593711267,3.61056188,86.697,86.65,1.53323818]
[1772593712471,3.61056188,86.697,86.641,3.6839261]
[1772593713069,1.53323818,86.69,86.641,3.6839261]
[1772593713368,1.53323818,86.69,86.641,14.0709261]
[1772593714172,1.53323818,86.69,86.642,3.6839261]
[1772593714469,3.61056188,86.697,86.642,3.6839261]
[1772593714877,124.0,86.79,86.642,3.6839261]
[1772593714878,1.53323818,86.69,86.642,3.6839261]
[1772593715565,3.61056188,86.686,86.63,1.53323818]
[1772593715871,3.61056188,86.686,86.574,20.79]
[1772593715872,1.53323818,86.67,86.621,3.6839261]
[1772593716263,1.53323818,86.69,86.641,3.6839261]
[1772593716474,3.61056188,86.696,86.641,3.6839261]
[1772593717571,3.61056188,86.694,86.641,3.6839261]
[1772593718571,3.61056188,86.692,86.641,3.6839261]
[1772593718975,3.61056188,86.719,86.641,3.6839261]
[1772593719375,3.61056188,86.717,86.641,3.6839261]
[1772593719868,3.61056188,86.717,86.584,190.36471141]
[1772593719869,3.61056188,86.691,86.632,10.388]
[1772593720069,3.61056188,86.691,86.62,4.56458818]
[1772593720070,3.61056188,86.691,86.633,3.6839261]
[1772593720674,3.61056188,86.691,86.642,3.6839261]
[1772593721877,3.61056188,86.689,86.642,3.6839261]
[1772593722772,3.61056188,86.669,86.613,3.6839261]
[1772593724380,3.61056188,86.669,86.614,10.39]
[1772593724683,3.61056188,86.669,86.615,3.6839261]
[1772593725878,10.384,86.668,86.615,3.6839261]
[1772593726183,3.61056188,86.667,86.615,3.6839261]
[1772593726882,3.61056188,86.667,86.617,3.6839261]
[1772593728281,3.61056188,86.667,86.618,10.39]
[1772593729382,3.61056188,86.667,86.617,3.6839261]
[1772593730085,3.8126057,86.665,86.612,14.2943135]
[1772593730384,3.8126057,86.665,86.613,3.9043135]
[1772593730585,3.8126057,86.665,86.614,10.39]
[1772593731191,3.8126057,86.665,86.614,14.2943135]
[1772593731887,3.8126057,86.665,86.615,3.9043135]
[1772593733088,3.8126057,86.679,86.618,3.9043135]
[1772593733791,3.8126057,86.677,86.621,10.389]
[1772593734394,3.8126057,86.675,86.628,10.388]
[1772593736686,3.8126057,86.675,86.636,10.387]
[1772593738093,4.56458818,86.68,86.6,4.56458818]
[1772593738094,4.56458818,86.68,86.639,3.9043135]
[1772593738293,3.8126057,86.679,86.601,3.9043135]
[1772593738491,1.53420084,86.67,86.621,3.9043135]
[1772593740299,1.53420084,86.69,86.631,3.9043135]
[1772593740495,1.53420084,86.69,86.641,3.9043135]
[1772593741096,1.53420084,86.7,86.651,3.9043135]
[1772593742500,1.53420084,86.71,86.661,3.9043135]
[1772593743402,1.53420084,86.7,86.661,3.9043135]
[1772593744594,1.53420084,86.7,86.603,161.652]
[1772593744595,1.53420084,86.72,86.649,3.9043135]
[1772593744800,5.34680654,86.7,86.65,5.43851434]
[1772593745201,5.34680654,86.7,86.651,3.9043135]
[1772593746101,5.34680654,86.7,86.66,1.53420084]
[1772593746605,3.8126057,86.7,86.653,3.9043135]
[1772593747002,3.8126057,86.719,86.655,3.9043135]
[1772593748205,3.8126057,86.719,86.659,3.9043135]
[1772593748698,3.8126057,86.719,86.661,3.9043135]
[1772593748895,3.8126057,86.719,86.66,4.56270269]
[1772593748896,3.8126057,86.719,86.673,3.9043135]
[1772593749899,3.8126057,86.719,86.686,10.381]
[1772593750104,3.8126057,86.733,86.687,3.9043135]
[1772593751206,3.8126057,86.733,86.688,10.381]
[1772593751408,3.8126057,86.747,86.689,3.9043135]
[1772593751602,4.56270269,86.76,86.689,3.9043135]
[1772593751797,3.8126057,86.763,86.713,3.9043135]
[1772593752003,3.8126057,86.759,86.671,3.9043135]
[1772593752409,3.8126057,86.758,86.696,10.38]
[1772593753108,3.8126057,86.758,86.702,10.38]
[1772593753308,3.8126057,86.758,86.703,3.9043135]
[1772593754307,3.8126057,86.758,86.707,3.9043135]
[1772593755208,3.8126057,86.758,86.71,10.379]
[1772593755409,3.8126057,86.758,86.711,3.9043135]
[1772593756908,3.8126057,86.758,86.712,10.378]
[1772593760012,3.8126057,86.758,86.701,10.38]
[1772593760212,3.8126057,86.758,86.701,14.08473684]
[1772593760413,3.8126057,86.758,86.702,3.70473684]
[1772593760618,3.8126057,86.758,86.706,3.70473684]
[1772593761123,3.91967037,86.776,86.728,3.70473684]
[1772593766823,3.91967037,86.776,86.715,3.70473684]
[1772593767123,3.91967037,86.774,86.715,3.70473684]
[1772593768420,1.53126094,86.76,86.715,3.70473684]
[1772593768821,5.45093131,86.75,86.701,3.70473684]
[1772593769026,1.53126094,86.74,86.701,3.70473684]
[1772593770127,1.53126094,86.76,86.711,3.70473684]
[1772593770429,1.53126094,86.77,86.721,3.70473684]
[1772593770626,3.91967037,86.776,86.731,3.70473684]
[1772593771327,1.53126094,86.78,86.731,3.70473684]
[1772593772323,1.53126094,86.77,86.719,3.70473684]
[1772593772529,1.53126094,86.77,86.721,3.70473684]
[1772593772919,3.91967037,86.794,86.73,1.53126094]
[1772593773128,1.53126094,86.78,86.741,3.70473684]
[1772593773725,2.00583305,86.825,86.727,3.70473684]
[1772593773726,1.53126094,86.77,86.727,3.70473684]
[1772593775827,1.53126094,86.74,86.698,3.70473684]
[1772593776426,1.53126094,86.74,86.7,3.70473684]
[1772593776828,1.53126094,86.74,86.701,3.70473684]
[1772593777032,3.91967037,86.747,86.701,3.70473684]
[1772593777232,3.91967037,86.747,86.702,3.70473684]
[1772593777435,1.53126094,86.74,86.702,3.70473684]
[1772593777628,3.91967037,86.747,86.702,3.70473684]
[1772593779334,3.91967037,86.747,86.706,10.379]
[1772593781025,1.53126094,86.74,86.702,3.70473684]
[1772593781633,3.91967037,86.747,86.702,3.70473684]
[1772593782034,1.53126094,86.74,86.702,3.70473684]
[1772593782227,1.53126094,86.74,86.703,10.379]
[1772593782426,3.91967037,86.747,86.704,3.70473684]
[1772593783336,3.91967037,86.747,86.705,10.379]
[1772593783537,3.91967037,86.747,86.706,3.70473684]
[1772593785326,3.91967037,86.747,86.707,10.379]
[1772593786535,3.91967037,86.747,86.707,14.08373684]
[1772593787238,1.53126094,86.74,86.707,3.70473684]
[1772593787629,3.91967037,86.747,86.707,3.70473684]
[1772593788438,3.91967037,86.747,86.695,3.88748877]
[1772593790236,3.91967037,86.747,86.698,3.88748877]
[1772593791038,3.91967037,86.747,86.702,3.88748877]
[1772593792739,14.30257405,86.791,86.685,276.38611951]
[1772593792740,3.83055422,86.739,86.685,276.38611951]
[1772593792933,3.83055422,86.719,86.685,276.38611951]
[1772593793434,1.53126094,86.73,86.686,3.88748877]
[1772593794044,1.53126094,86.73,86.685,276.38611951]
[1772593794045,1.53126094,86.74,86.691,3.88748877]
[1772593794740,3.83055422,86.759,86.711,3.88748877]
[1772593796442,3.83055422,86.759,86.711,14.26548877]
[1772593796741,1.53126094,86.75,86.711,14.26548877]
[1772593797639,3.83055422,86.781,86.715,3.88748877]
[1772593797938,1.53126094,86.76,86.721,3.88748877]
[1772593798339,1.53126094,86.75,86.708,3.88748877]
[1772593800344,5.36181516,86.75,86.708,3.88748877]
[1772593800643,3.83055422,86.749,86.708,3.88748877]
[1772593800845,1.53126094,86.74,86.695,3.88748877]
[1772593801041,3.83055422,86.739,86.695,3.88748877]
[1772593801742,1.53126094,86.73,86.695,3.88748877]
[1772593802439,3.83055422,86.739,86.695,3.88748877]
[1772593802640,3.83055422,86.737,86.69,1.53126094]
[1772593802843,3.83055422,86.729,86.68,5.41874971]
[1772593803045,3.83055422,86.729,86.681,3.88748877]
[1772593803441,3.83055422,86.729,86.69,1.53126094]
[1772593803642,3.83055422,86.743,86.7,5.41874971]
[1772593804346,3.83055422,86.743,86.701,3.88748877]
[1772593806442,5.36181516,86.74,86.701,3.88748877]
[1772593806647,3.83055422,86.739,86.69,5.41874971]
[1772593806952,3.83055422,86.739,86.691,3.88748877]
[1772593807143,3.83055422,86.739,86.692,3.88748877]
[1772593810048,3.83055422,86.759,86.711,3.88748877]
[1772593810946,1.53126094,86.75,86.7,1.53126094]
[1772593811248,3.83055422,86.749,86.7,1.53126094]
[1772593812053,3.83055422,86.749,86.697,3.88748877]
[1772593813553,3.83055422,86.739,86.697,3.88748877]
[1772593814743,3.83055422,86.752,86.71,5.41874971]
[1772593815149,3.83055422,86.775,86.711,3.88748877]
[1772593815351,3.83055422,86.769,86.72,1.53126094]
[1772593816057,1.53126094,86.76,86.711,3.88748877]
[1772593816250,3.83055422,86.759,86.713,10.378]
[1772593818359,3.83055422,86.759,86.719,10.377]
[1772593820753,3.58307996,86.773,86.728,3.68160765]
[1772593820955,3.58307996,86.773,86.731,3.68160765]
[1772593821762,1.53126094,86.78,86.731,3.68160765]
[1772593822354,1.53126094,86.78,86.732,3.68160765]
[1772593823458,1.53126094,86.77,86.732,3.68160765]
[1772593824157,3.58307996,86.769,86.719,3.68160765]
[1772593824362,1.53126094,86.76,86.719,3.68160765]
[1772593824559,1.53110108,86.76,86.719,3.68160765]
[1772593826255,3.58307996,86.749,86.694,14.18015862]
[1772593826460,1.53110108,86.73,86.691,3.68160765]
[1772593827859,10.72806134,86.771,86.7,1.53110108]
[1772593827860,1.53110108,86.75,86.7,1.53110108]
[1772593828160,1.53110108,86.75,86.701,3.68160765]
[1772593828356,1.53110108,86.74,86.701,3.68160765]
[1772593829766,1.53110108,86.73,86.689,10.381]
[1772593830165,1.53110108,86.73,86.69,3.68160765]
[1772593831864,5.11418104,86.73,86.69,3.68160765]
[1772593832261,3.58307996,86.719,86.675,3.68160765]
[1772593833164,3.58307996,86.719,86.677,3.68160765]
[1772593840678,1.53110108,86.7,86.667,3.68160765]
[1772593841376,1.53110108,86.69,86.653,3.68160765]
[1772593841575,1.53110108,86.68,86.64,3.68160765]
[1772593843775,1.53110108,86.68,86.61,21.44297095]
[1772593843776,1.53110108,86.67,86.626,3.68160765]
[1772593844567,1.53110108,86.67,86.628,3.68160765]
[1772593844770,1.53110108,86.66,86.616,3.68160765]
[1772593845077,5.11418104,86.66,86.616,3.68160765]
[1772593846972,5.11418104,86.66,86.621,3.68160765]
[1772593847173,3.58307996,86.66,86.621,3.68160765]
[1772593847975,3.58307996,86.66,86.621,14.07060765]
[1772593848981,3.77408982,86.669,86.624,3.64852187]
[1772593850380,3.77408982,86.669,86.628,10.388]
[1772593851377,3.77408982,86.669,86.633,10.388]
[1772593851586,3.77408982,86.669,86.629,3.64852187]
[1772593852582,3.77408982,86.669,86.62,1.53110108]
[1772593852583,1.53110108,86.66,86.616,3.64852187]
[1772593852779,3.77408982,86.659,86.616,3.64852187]
[1772593852984,3.77408982,86.659,86.62,10.389]
[1772593853184,3.77408982,86.659,86.621,3.64852187]
[1772593853778,1.53110108,86.67,86.623,3.64852187]
[1772593853984,3.77408982,86.672,86.63,1.53110108]
[1772593854178,3.77408982,86.672,86.623,3.64852187]
[1772593854782,1.53110108,86.67,86.623,3.64852187]
[1772593855080,11.54,86.738,86.569,161.715]
[1772593855081,3.77408982,86.685,86.641,3.64852187]
[1772593856284,3.77408982,86.685,86.643,3.64852187]
[1772593856482,1.53110108,86.69,86.643,3.64852187]
[1772593856984,3.77408982,86.689,86.643,3.64852187]
[1772593857782,3.77408982,86.679,86.63,1.53110108]
[1772593857986,3.77408982,86.679,86.627,3.64852187]
[1772593858388,3.77408982,86.679,86.629,3.64852187]
[1772593858587,1.53110108,86.67,86.63,3.64852187]
[1772593858788,161.406,86.736,86.611,3.64852187]
[1772593858789,3.77408982,86.659,86.611,3.64852187]
[1772593859291,3.77408982,86.659,86.613,3.64852187]
[1772593860492,3.77408982,86.659,86.615,3.64852187]
[1772593860788,3.77408982,86.659,86.62,1.53110108]
[1772593861992,1.53110108,86.68,86.63,1.53110108]
[1772593862191,3.77408982,86.688,86.64,1.53110108]
[1772593862491,3.77408982,86.679,86.632,3.64852187]
[1772593862886,3.77408982,86.679,86.633,10.388]
[1772593863790,3.77408982,86.679,86.642,10.387]
[1772593863990,3.77408982,86.692,86.642,3.64852187]
[1772593865299,3.77408982,86.692,86.65,10.386]
[1772593865894,3.77408982,86.692,86.656,10.385]
[1772593866988,3.77408982,86.692,86.651,3.64852187]
[1772593867788,3.77408982,86.692,86.654,10.385]
[1772593867992,3.77408982,86.692,86.66,1.53110108]
[1772593868391,3.77408982,86.723,86.68,1.53110108]
[1772593869299,3.77408982,86.723,86.681,10.382]
[1772593869897,3.77408982,86.723,86.68,1.53110108]
[1772593870595,3.77408982,86.719,86.67,1.53110108]
[1772593870802,3.77408982,86.719,86.66,10.385]
[1772593870803,3.77408982,86.709,86.66,11.91610108]
[1772593871001,3.77408982,86.709,86.67,1.53110108]
[1772593871200,184.58,86.756,86.63,14.18015862]
[1772593871201,3.77408982,86.689,86.64,1.53110108]
[1772593871801,3.77408982,86.679,86.637,10.387]
[1772593872201,3.77408982,86.679,86.64,1.53110108]
[1772593874604,3.77408982,86.679,86.63,5.17962295]
[1772593875596,3.77408982,86.679,86.632,3.64852187]
[1772593876196,3.77408982,86.679,86.64,1.53110108]
[1772593877596,3.77408982,86.679,86.634,10.388]
[1772593877803,3.77408982,86.679,86.632,3.64852187]
[1772593878406,3.77408982,86.679,86.632,14.03652187]
[1772593878809,3.77408982,86.679,86.633,3.7281754]
[1772593879405,3.77408982,86.679,86.635,10.388]
[1772593879605,3.77408982,86.679,86.635,14.1161754]
[1772593880009,3.77408982,86.679,86.641,3.7281754]
[1772593881016,1.53110108,86.69,86.641,3.7281754]
[1772593881216,3.68786841,86.689,86.642,10.387]
[1772593882710,3.68786841,86.689,86.641,3.7281754]
[1772593883011,3.68786841,86.679,86.631,10.388]
[1772593885216,3.68786841,86.679,86.634,10.388]
[1772593885716,3.68786841,86.679,86.632,3.7281754]
[1772593886113,3.68786841,86.669,86.623,3.7281754]
[1772593886412,3.68786841,86.669,86.63,1.53395045]
[1772593887420,3.68786841,86.669,86.628,10.388]
[1772593890222,3.68786841,86.659,86.608,3.7281754]
[1772593890415,3.68786841,86.659,86.61,1.53395045]
[1772593890617,3.68786841,86.659,86.611,3.7281754]
[1772593891325,3.68786841,86.659,86.613,3.7281754]
[1772593891522,3.68786841,86.659,86.62,1.53395045]
[1772593892223,3.68786841,86.659,86.613,3.7281754]
[1772593892616,1.53395045,86.65,86.582,3.7281754]
[1772593892818,3.68786841,86.639,86.582,3.7281754]
[1772593893016,3.68786841,86.639,86.58,1.53395045]
[1772593893017,3.68786841,86.639,86.59,1.53395045]
[1772593893213,3.68786841,86.639,86.6,1.53395045]
[1772593893419,3.68786841,86.649,86.601,3.7281754]
[1772593894427,3.68786841,86.649,86.6,1.53395045]
[1772593894819,1.53395045,86.64,86.6,1.53395045]
[1772593895025,1.53395045,86.64,86.583,3.7281754]
[1772593895026,3.68786841,86.639,86.59,1.53395045]
[1772593895426,3.68786841,86.639,86.591,3.7281754]
[1772593895727,3.68786841,86.639,86.6,1.53395045]
[1772593896520,3.68786841,86.639,86.591,3.7281754]
[1772593897726,3.68786841,86.639,86.61,1.53395045]
[1772593898523,3.68786841,86.639,86.6,1.53395045]
[1772593898718,124.0,86.69,86.57,1.53395045]
[1772593898719,3.68786841,86.629,86.57,1.53395045]
[1772593899729,3.68786841,86.619,86.57,1.53395045]
[1772593900120,161.509,86.68,86.554,10.397]
[1772593900121,3.68786841,86.609,86.554,10.397]
[1772593900527,3.68786841,86.609,86.56,1.53395045]
[1772593900718,3.68786841,86.609,86.561,10.396]
[1772593901724,3.68786841,86.609,86.55,11.93195045]
[1772593902427,3.68786841,86.609,86.55,1.53395045]
[1772593902816,3.68786841,86.599,86.55,1.53395045]
[1772593903016,3.68786841,86.599,86.507,2.00877396]
[1772593903017,3.68786841,86.589,86.54,1.53395045]
[1772593904325,3.68786841,86.589,86.54,5.26212585]
[1772593904627,3.68786841,86.589,86.55,1.53395045]
[1772593904926,3.68786841,86.589,86.55,5.26212585]
[1772593905327,3.68786841,86.589,86.55,1.53395045]
[1772593906229,3.68786841,86.589,86.541,3.7281754]
[1772593906726,3.68786841,86.589,86.55,1.53395045]
[1772593907525,3.68786841,86.589,86.528,3.7281754]
[1772593907724,3.68786841,86.589,86.54,1.53395045]
[1772593909229,3.58631326,86.587,86.55,1.53395045]
[1772593909824,3.58631326,86.605,86.56,1.53395045]
[1772593910929,3.58631326,86.605,86.55,3.76925154]
[1772593910930,3.58631326,86.605,86.55,5.30320199]
[1772593911832,3.58631326,86.599,86.54,1.53395045]
[1772593912426,1.53395045,86.58,86.53,1.53395045]
[1772593912626,3.58631326,86.569,86.52,1.53395045]
[1772593912830,3.58631326,86.567,86.512,10.402]
[1772593913133,3.58631326,86.567,86.52,1.53395045]
[1772593917832,3.58631326,86.567,86.53,1.53395045]
[1772593918330,161.595,86.634,86.53,1.53395045]
[1772593918642,175.0,86.65,86.55,1.53395045]
[1772593918643,3.58631326,86.597,86.55,1.53395045]
[1772593919638,3.58631326,86.597,86.56,1.53395045]
[1772593920434,10.391,86.609,86.56,1.53395045]
[1772593920734,3.58631326,86.608,86.56,1.53395045]
[1772593922335,3.58631326,86.608,86.57,1.53395045]
[1772593922731,1.53395045,86.62,86.56,5.30320199]
[1772593922732,3.58631326,86.606,86.56,5.30320199]
[1772593922932,1.53395045,86.6,86.54,1.53395045]
[1772593923136,1.53395045,86.58,86.53,1.53395045]
[1772593923439,3.58631326,86.579,86.531,10.4]
[1772593923737,3.58631326,86.598,86.551,3.76925154]
[1772593923937,3.58631326,86.598,86.56,1.53395045]
[1772593927043,3.58631326,86.598,86.57,1.53395045]
[1772593927244,3.58631326,86.619,86.57,1.53395045]
[1772593927741,3.58631326,86.619,86.56,1.53395045]
[1772593927943,1.53395045,86.61,86.56,1.53395045]
[1772593928137,3.58631326,86.609,86.56,1.53395045]
[1772593928745,1.53395045,86.59,86.54,1.53395045]
[1772593928939,3.58631326,86.59,86.54,1.53395045]
[1772593929440,3.58631326,86.604,86.55,1.53395045]
[1772593929641,3.58631326,86.604,86.56,1.53395045]
[1772593930340,3.58631326,86.604,86.502,21.35858608]
[1772593930341,3.58631326,86.619,86.58,1.53395045]
[1772593930744,3.58631326,86.619,86.59,1.53395045]
[1772593932046,3.58631326,86.636,86.59,1.53395045]
[1772593932248,3.58631326,86.651,86.61,1.53395045]
[1772593932546,3.58631326,86.651,86.62,1.53395045]
[1772593933046,3.58631326,86.668,86.62,1.53395045]
[1772593933949,3.58631326,86.668,86.63,1.53395045]
[1772593934140,3.58631326,86.668,86.62,1.53395045]
[1772593934448,3.58631326,86.668,86.63,1.53395045]
[1772593935249,3.58631326,86.668,86.62,1.53395045]
[1772593935546,3.58631326,86.668,86.556,21.35858608]
[1772593935547,3.58631326,86.668,86.63,1.53395045]
[1772593935745,10.382,86.679,86.63,1.53395045]
[1772593935938,3.58631326,86.678,86.63,1.53395045]
[1772593938646,3.58631326,86.678,86.622,14.15825154]
[1772593938852,3.55383146,86.675,86.622,3.76925154]
[1772593939748,3.55383146,86.675,86.591,3.82927603]
[1772593939948,3.710789,86.656,86.6,1.53395045]
[1772593940149,3.710789,86.656,86.61,1.53395045]
[1772593940344,3.710789,86.669,86.62,1.53395045]
[1772593940553,3.710789,86.669,86.621,3.82927603]
[1772593940754,3.710789,86.669,86.63,1.53395045]
[1772593941556,3.710789,86.669,86.568,14.18015862]
[1772593941557,3.710789,86.649,86.605,3.82927603]
[1772593945757,3.710789,86.649,86.552,14.18015862]
[1772593945758,1.53395045,86.64,86.59,5.36322648]
[1772593946061,3.710789,86.629,86.58,1.53395045]
[1772593946360,3.710789,86.629,86.576,3.82927603]
[1772593946656,1.53594007,86.62,86.576,3.82927603]
[1772593948859,1.53594007,86.64,86.592,3.82927603]
[1772593949764,3.710789,86.639,86.592,3.82927603]
[1772593949965,1.53594007,86.63,86.592,3.82927603]
[1772593950265,1.53594007,86.65,86.601,3.82927603]
[1772593950465,161.428,86.724,86.544,20.797]
[1772593950466,1.53594007,86.66,86.611,3.82927603]
[1772593950673,3.710789,86.669,86.611,3.82927603]
[1772593950966,10.384,86.667,86.611,3.82927603]
[1772593951665,1.53594007,86.66,86.611,3.82927603]
[1772593952768,5.24672907,86.66,86.611,3.82927603]
[1772593954574,10.385,86.659,86.611,3.82927603]
[1772593954773,5.24672907,86.66,86.611,3.82927603]
[1772593956674,186.48307071,86.723,86.621,3.82927603]
[1772593956675,1.53594007,86.67,86.621,3.82927603]